[Event "Titled Tuesday Blitz February 14 Late 2023"]
[White "Ibarra Jerez, Jose Carlos"]
[Black "Martynov, Pavel"]
[WhiteFideId "2226332"]
[BlackFideId "4101260"]
[WhiteElo "2563"]
[BlackElo "2414"]
[Result "1-0"]
[Round "04"]
[TimeControl "180+2"]
[Date "2023.02.14"]
[WhiteClock "0:00:17"]
[BlackClock "0:00:02"]

1. e4 {[%clk 0:03:00]}  c5 {[%clk 0:02:57]} 2. Nc3 {[%clk 0:03:00]}  e6 {[%clk 0:02:52]} 3. Nge2 {[%clk 0:02:59]}  Nc6 {[%clk 0:02:52]} 4. d4 {[%clk 0:03:00]}  cxd4 {[%clk 0:02:52]} 5. Nxd4 {[%clk 0:03:00]}  Qc7 {[%clk 0:02:53]} 6. g4 {[%clk 0:03:01]}  a6 {[%clk 0:02:52]} 7. Be3 {[%clk 0:03:00]}  b5 {[%clk 0:02:51]} 8. Nxc6 {[%clk 0:02:59]}  Qxc6 {[%clk 0:02:51]} 9. Qd2 {[%clk 0:02:59]}  Bb7 {[%clk 0:02:49]} 10. O-O-O {[%clk 0:02:54]}  Rc8 {[%clk 0:02:43]} 11. Kb1 {[%clk 0:02:35]}  Bb4 {[%clk 0:02:33]} 12. Qd4 {[%clk 0:02:33]}  Bxc3 {[%clk 0:02:33]} 13. bxc3 {[%clk 0:02:34]}  Nf6 {[%clk 0:02:31]} 14. f3 {[%clk 0:01:36]}  Qxc3 {[%clk 0:02:20]} 15. g5 {[%clk 0:01:36]}  Qxd4 {[%clk 0:02:15]} 16. Bxd4 {[%clk 0:01:36]}  Nh5 {[%clk 0:02:14]} 17. Bh3 {[%clk 0:01:21]}  Nf4 {[%clk 0:01:24]} 18. Bg4 {[%clk 0:01:21]}  Rg8 {[%clk 0:01:09]} 19. Be5 {[%clk 0:01:11]}  Ne2 {[%clk 0:00:39]} 20. Kb2 {[%clk 0:01:08]}  b4 {[%clk 0:00:33]} 21. Rd3 {[%clk 0:00:52]}  d5 {[%clk 0:00:31]} 22. exd5 {[%clk 0:00:50]}  Rc5 {[%clk 0:00:25]} 23. Re1 {[%clk 0:00:43]}  Nc3 {[%clk 0:00:23]} 24. dxe6 {[%clk 0:00:42]}  fxe6 {[%clk 0:00:02]} 25. Bxe6 {[%clk 0:00:40]}  Rf8 {[%clk 0:00:03]} 26. Bd6 {[%clk 0:00:29]}  Na4+ {[%clk 0:00:01]} 27. Kc1 {[%clk 0:00:28]}  Rc3 {[%clk 0:00:02]} 28. Bb3+ {[%clk 0:00:17]} 1-0


[Site "https://www.chess.com"]

[Event "Titled Tuesday Blitz February 14 Late 2023"]
[White "Makridis, Dimitrios"]
[Black "Al-Tarboush, Ward"]
[WhiteFideId "25864475"]
[BlackFideId "7601450"]
[WhiteElo "2356"]
[BlackElo "2256"]
[Result "1-0"]
[Round "04"]
[TimeControl "180+2"]
[Date "2023.02.14"]
[WhiteClock "0:01:18"]
[BlackClock "0:00:05"]

1. Nc3 {[%clk 0:02:56]}  d5 {[%clk 0:02:58]} 2. e4 {[%clk 0:02:55]}  d4 {[%clk 0:02:58]} 3. Nce2 {[%clk 0:02:55]}  e5 {[%clk 0:02:55]} 4. Nf3 {[%clk 0:02:54]}  Bd6 {[%clk 0:02:53]} 5. d3 {[%clk 0:02:54]}  c5 {[%clk 0:02:52]} 6. Ng3 {[%clk 0:02:53]}  Nc6 {[%clk 0:02:51]} 7. Be2 {[%clk 0:02:52]}  Nge7 {[%clk 0:02:50]} 8. O-O {[%clk 0:02:53]}  f6 {[%clk 0:02:50]} 9. Nh4 {[%clk 0:02:52]}  Be6 {[%clk 0:02:47]} 10. Nhf5 {[%clk 0:02:52]}  Nxf5 {[%clk 0:02:42]} 11. exf5 {[%clk 0:02:53]}  Bd7 {[%clk 0:02:38]} 12. Bh5+ {[%clk 0:02:52]}  Ke7 {[%clk 0:02:37]} 13. f4 {[%clk 0:02:51]}  exf4 {[%clk 0:02:35]} 14. Bxf4 {[%clk 0:02:51]}  Bxf4 {[%clk 0:02:35]} 15. Rxf4 {[%clk 0:02:51]}  Ne5 {[%clk 0:02:36]} 16. c3 {[%clk 0:02:48]}  Bc6 {[%clk 0:02:34]} 17. cxd4 {[%clk 0:02:48]}  cxd4 {[%clk 0:02:34]} 18. Ne2 {[%clk 0:02:47]}  Qd5 {[%clk 0:02:33]} 19. Bf3 {[%clk 0:02:41]}  Nxf3+ {[%clk 0:02:31]} 20. gxf3 {[%clk 0:02:42]}  Rhd8 {[%clk 0:02:22]} 21. Nxd4 {[%clk 0:02:18]}  Qc5 {[%clk 0:02:05]} 22. Qe2+ {[%clk 0:02:13]}  Kf8 {[%clk 0:01:56]} 23. Qe3 {[%clk 0:02:12]}  Kg8 {[%clk 0:01:53]} 24. Kf2 {[%clk 0:01:57]}  Re8 {[%clk 0:01:38]} 25. Ne6 {[%clk 0:01:56]}  Qxe3+ {[%clk 0:01:38]} 26. Kxe3 {[%clk 0:01:57]}  Bd5 {[%clk 0:01:38]} 27. Rc1 {[%clk 0:01:55]}  Bxe6 {[%clk 0:01:36]} 28. fxe6 {[%clk 0:01:56]}  Rxe6+ {[%clk 0:01:37]} 29. Re4 {[%clk 0:01:56]}  Rae8 {[%clk 0:01:32]} 30. Rc7 {[%clk 0:01:54]}  f5 {[%clk 0:01:29]} 31. Rxe6 {[%clk 0:01:53]}  Rxe6+ {[%clk 0:01:30]} 32. Kf4 {[%clk 0:01:50]}  Rb6 {[%clk 0:01:30]} 33. b3 {[%clk 0:01:45]}  Rb5 {[%clk 0:01:29]} 34. d4 {[%clk 0:01:45]}  a6 {[%clk 0:00:55]} 35. Rd7 {[%clk 0:01:41]}  g6 {[%clk 0:00:44]} 36. h4 {[%clk 0:01:38]}  Ra5 {[%clk 0:00:32]} 37. a4 {[%clk 0:01:37]}  b5 {[%clk 0:00:32]} 38. Rd5 {[%clk 0:01:34]}  Kf7 {[%clk 0:00:30]} 39. Ke5 {[%clk 0:01:34]}  Ke7 {[%clk 0:00:30]} 40. Rc5 {[%clk 0:01:33]}  Kd7 {[%clk 0:00:30]} 41. d5 {[%clk 0:01:32]}  h6 {[%clk 0:00:20]} 42. d6 {[%clk 0:01:30]}  g5 {[%clk 0:00:20]} 43. hxg5 {[%clk 0:01:31]}  hxg5 {[%clk 0:00:21]} 44. Rc7+ {[%clk 0:01:23]}  Kd8 {[%clk 0:00:21]} 45. Ke6 {[%clk 0:01:22]}  bxa4 {[%clk 0:00:08]} 46. Ra7 {[%clk 0:01:22]}  Kc8 {[%clk 0:00:05]} 47. d7+ {[%clk 0:01:18]} 1-0


[Site "https://www.chess.com"]

[Event "Titled Tuesday Blitz February 14 Late 2023"]
[White "Acor, Corey"]
[Black "Richter, Paul"]
[WhiteFideId "2024861"]
[BlackFideId "2046350"]
[WhiteElo "2216"]
[BlackElo "2171"]
[Result "1-0"]
[Round "04"]
[TimeControl "180+2"]
[Date "2023.02.14"]
[WhiteClock "0:01:08"]
[BlackClock "0:00:03"]

1. e4 {[%clk 0:03:00]}  c5 {[%clk 0:02:59]} 2. Nc3 {[%clk 0:03:01]}  a6 {[%clk 0:02:58]} 3. g3 {[%clk 0:03:01]}  b5 {[%clk 0:02:58]} 4. Bg2 {[%clk 0:03:00]}  Bb7 {[%clk 0:02:58]} 5. d3 {[%clk 0:02:58]}  e6 {[%clk 0:02:58]} 6. Be3 {[%clk 0:02:55]}  Nf6 {[%clk 0:02:55]} 7. h3 {[%clk 0:02:45]}  d5 {[%clk 0:02:50]} 8. exd5 {[%clk 0:02:38]}  Nxd5 {[%clk 0:02:51]} 9. Nxd5 {[%clk 0:02:36]}  Bxd5 {[%clk 0:02:52]} 10. Nf3 {[%clk 0:02:36]}  Be7 {[%clk 0:02:46]} 11. O-O {[%clk 0:02:36]}  O-O {[%clk 0:02:42]} 12. Re1 {[%clk 0:02:36]}  Nd7 {[%clk 0:02:34]} 13. Qe2 {[%clk 0:02:31]}  c4 {[%clk 0:02:16]} 14. Rad1 {[%clk 0:02:30]}  cxd3 {[%clk 0:02:08]} 15. Qxd3 {[%clk 0:02:31]}  Bxf3 {[%clk 0:01:57]} 16. Bxf3 {[%clk 0:02:29]}  Ne5 {[%clk 0:01:57]} 17. Qe4 {[%clk 0:02:25]}  Nxf3+ {[%clk 0:01:56]} 18. Qxf3 {[%clk 0:02:26]}  Qc7 {[%clk 0:01:56]} 19. c3 {[%clk 0:02:25]}  Rad8 {[%clk 0:01:49]} 20. Bf4 {[%clk 0:02:25]}  Qb6 {[%clk 0:01:41]} 21. a3 {[%clk 0:02:19]}  a5 {[%clk 0:01:29]} 22. Kg2 {[%clk 0:02:15]}  Bf6 {[%clk 0:00:55]} 23. Be3 {[%clk 0:02:06]}  Qc7 {[%clk 0:00:52]} 24. h4 {[%clk 0:02:06]}  h6 {[%clk 0:00:44]} 25. Bxh6 {[%clk 0:02:02]}  Rxd1 {[%clk 0:00:26]} 26. Rxd1 {[%clk 0:02:01]}  Rd8 {[%clk 0:00:27]} 27. Bf4 {[%clk 0:01:53]}  Qc8 {[%clk 0:00:24]} 28. Rxd8+ {[%clk 0:01:51]}  Qxd8 {[%clk 0:00:25]} 29. Be3 {[%clk 0:01:42]}  Qb8 {[%clk 0:00:16]} 30. Qc6 {[%clk 0:01:41]}  b4 {[%clk 0:00:16]} 31. cxb4 {[%clk 0:01:31]}  axb4 {[%clk 0:00:17]} 32. Bf4 {[%clk 0:01:21]}  e5 {[%clk 0:00:06]} 33. Be3 {[%clk 0:01:21]}  bxa3 {[%clk 0:00:06]} 34. bxa3 {[%clk 0:01:21]}  Qb3 {[%clk 0:00:05]} 35. a4 {[%clk 0:01:17]}  Qa2 {[%clk 0:00:04]} 36. Qa8+ {[%clk 0:01:12]}  Kh7 {[%clk 0:00:04]} 37. a5 {[%clk 0:01:13]}  g6 {[%clk 0:00:03]} 38. a6 {[%clk 0:01:12]}  e4 {[%clk 0:00:03]} 39. a7 {[%clk 0:01:08]} 1-0


[Site "https://www.chess.com"]

[Event "Titled Tuesday Blitz February 14 Late 2023"]
[White "Christiansen, Johan-Sebastian"]
[Black "Martinez Reyes, Pedro Ramon"]
[WhiteFideId "1512668"]
[BlackFideId "3901807"]
[WhiteElo "2579"]
[BlackElo "2376"]
[Result "1-0"]
[Round "04"]
[TimeControl "180+2"]
[Date "2023.02.14"]
[WhiteClock "0:00:11"]
[BlackClock "0:00:10"]

1. e4 {[%clk 0:03:00]}  e6 {[%clk 0:02:59]} 2. d4 {[%clk 0:02:59]}  d5 {[%clk 0:03:00]} 3. Nc3 {[%clk 0:02:59]}  Nf6 {[%clk 0:03:00]} 4. Bg5 {[%clk 0:02:59]}  h6 {[%clk 0:02:59]} 5. Bxf6 {[%clk 0:02:57]}  Qxf6 {[%clk 0:03:00]} 6. a3 {[%clk 0:02:56]}  c6 {[%clk 0:02:52]} 7. Nf3 {[%clk 0:02:56]}  Nd7 {[%clk 0:02:51]} 8. Bd3 {[%clk 0:02:55]}  g6 {[%clk 0:02:51]} 9. Qe2 {[%clk 0:02:54]}  dxe4 {[%clk 0:02:43]} 10. Nxe4 {[%clk 0:02:54]}  Qe7 {[%clk 0:02:44]} 11. h4 {[%clk 0:02:54]}  Bg7 {[%clk 0:02:43]} 12. h5 {[%clk 0:02:54]}  g5 {[%clk 0:02:43]} 13. Ng3 {[%clk 0:02:49]}  g4 {[%clk 0:02:17]} 14. Ne5 {[%clk 0:02:08]}  Nxe5 {[%clk 0:02:17]} 15. dxe5 {[%clk 0:02:09]}  Qg5 {[%clk 0:02:17]} 16. Ne4 {[%clk 0:02:09]}  Qxe5 {[%clk 0:02:17]} 17. Qxg4 {[%clk 0:02:10]}  Kf8 {[%clk 0:02:08]} 18. O-O {[%clk 0:02:01]}  f5 {[%clk 0:02:07]} 19. Qf3 {[%clk 0:02:02]}  Ke7 {[%clk 0:02:02]} 20. Nd2 {[%clk 0:01:43]}  Qd5 {[%clk 0:01:59]} 21. Qxd5 {[%clk 0:01:18]}  exd5 {[%clk 0:01:55]} 22. Rae1+ {[%clk 0:01:12]}  Kd6 {[%clk 0:01:53]} 23. c3 {[%clk 0:01:09]}  Bd7 {[%clk 0:01:53]} 24. Nf3 {[%clk 0:01:08]}  Rae8 {[%clk 0:01:52]} 25. Nh4 {[%clk 0:01:07]}  Rxe1 {[%clk 0:01:42]} 26. Rxe1 {[%clk 0:01:08]}  Rf8 {[%clk 0:01:43]} 27. Ng6 {[%clk 0:01:06]}  Rf7 {[%clk 0:01:37]} 28. f4 {[%clk 0:01:04]}  c5 {[%clk 0:01:27]} 29. Kf2 {[%clk 0:00:53]}  c4 {[%clk 0:01:24]} 30. Be2 {[%clk 0:00:44]}  b5 {[%clk 0:01:19]} 31. Bf3 {[%clk 0:00:43]}  Bc6 {[%clk 0:01:06]} 32. g3 {[%clk 0:00:34]}  a5 {[%clk 0:01:05]} 33. g4 {[%clk 0:00:32]}  fxg4 {[%clk 0:01:04]} 34. Bxg4 {[%clk 0:00:33]}  d4 {[%clk 0:01:02]} 35. Re6+ {[%clk 0:00:32]}  Kc5 {[%clk 0:01:01]} 36. Ne5 {[%clk 0:00:17]}  Rxf4+ {[%clk 0:00:53]} 37. Kg3 {[%clk 0:00:17]}  Rf6 {[%clk 0:00:43]} 38. cxd4+ {[%clk 0:00:15]}  Kd5 {[%clk 0:00:37]} 39. Rxc6 {[%clk 0:00:13]}  Rxc6 {[%clk 0:00:36]} 40. Bf3+ {[%clk 0:00:13]}  Kxd4 {[%clk 0:00:34]} 41. Nxc6+ {[%clk 0:00:14]}  Ke3 {[%clk 0:00:34]} 42. Nxa5 {[%clk 0:00:14]}  Bxb2 {[%clk 0:00:30]} 43. a4 {[%clk 0:00:15]}  Bc3 {[%clk 0:00:27]} 44. Nc6 {[%clk 0:00:10]}  b4 {[%clk 0:00:27]} 45. Bd5 {[%clk 0:00:10]}  b3 {[%clk 0:00:25]} 46. Bxc4 {[%clk 0:00:10]}  b2 {[%clk 0:00:25]} 47. Ba2 {[%clk 0:00:10]}  Be1+ {[%clk 0:00:09]} 48. Kg4 {[%clk 0:00:10]}  Kd2 {[%clk 0:00:09]} 49. a5 {[%clk 0:00:11]}  Kc1 {[%clk 0:00:09]} 50. a6 {[%clk 0:00:11]}  b1=Q {[%clk 0:00:09]} 51. Bxb1 {[%clk 0:00:11]}  Kxb1 {[%clk 0:00:10]} 1-0


[Site "https://www.chess.com"]

[Event "Titled Tuesday Blitz February 14 Late 2023"]
[White "Tanenbaum, Zachary"]
[Black "Kanyamarala, Tarun"]
[WhiteFideId "2060850"]
[BlackFideId "45004714"]
[WhiteElo "2261"]
[BlackElo "2342"]
[Result "1-0"]
[Round "04"]
[TimeControl "180+2"]
[Date "2023.02.14"]
[WhiteClock "0:00:04"]
[BlackClock "0:00:03"]

1. e4 {[%clk 0:03:00]}  c5 {[%clk 0:02:59]} 2. Nf3 {[%clk 0:03:00]}  Nc6 {[%clk 0:02:59]} 3. Nc3 {[%clk 0:02:59]}  e5 {[%clk 0:02:56]} 4. Bc4 {[%clk 0:02:59]}  Be7 {[%clk 0:02:54]} 5. d3 {[%clk 0:02:58]}  d6 {[%clk 0:02:55]} 6. Nd2 {[%clk 0:02:58]}  Nf6 {[%clk 0:02:53]} 7. Nf1 {[%clk 0:02:57]}  Bg4 {[%clk 0:02:52]} 8. f3 {[%clk 0:02:57]}  Be6 {[%clk 0:02:49]} 9. Ne3 {[%clk 0:02:45]}  a6 {[%clk 0:02:48]} 10. a4 {[%clk 0:02:40]}  Nb4 {[%clk 0:02:45]} 11. O-O {[%clk 0:02:35]}  d5 {[%clk 0:02:38]} 12. exd5 {[%clk 0:02:28]}  Nbxd5 {[%clk 0:02:37]} 13. Ne4 {[%clk 0:02:23]}  O-O {[%clk 0:02:34]} 14. Ng5 {[%clk 0:01:36]}  Bc8 {[%clk 0:02:16]} 15. Re1 {[%clk 0:01:26]}  Nf4 {[%clk 0:02:06]} 16. Bd2 {[%clk 0:01:11]}  h6 {[%clk 0:02:05]} 17. Ne4 {[%clk 0:01:10]}  Be6 {[%clk 0:01:55]} 18. Bxe6 {[%clk 0:01:00]}  Nxe6 {[%clk 0:01:54]} 19. Nc4 {[%clk 0:00:57]}  Nd7 {[%clk 0:01:37]} 20. Bc3 {[%clk 0:00:53]}  Nd4 {[%clk 0:01:36]} 21. a5 {[%clk 0:00:40]}  Qc7 {[%clk 0:01:33]} 22. Ng3 {[%clk 0:00:37]}  Rae8 {[%clk 0:01:28]} 23. Bd2 {[%clk 0:00:26]}  Bh4 {[%clk 0:01:27]} 24. c3 {[%clk 0:00:26]}  Nc6 {[%clk 0:01:17]} 25. Re4 {[%clk 0:00:23]}  Bxg3 {[%clk 0:01:15]} 26. hxg3 {[%clk 0:00:24]}  f5 {[%clk 0:01:14]} 27. Re2 {[%clk 0:00:24]}  Nf6 {[%clk 0:01:13]} 28. Qb3 {[%clk 0:00:24]}  Kh7 {[%clk 0:01:12]} 29. Rae1 {[%clk 0:00:24]}  e4 {[%clk 0:01:00]} 30. Bf4 {[%clk 0:00:22]}  Qd7 {[%clk 0:00:57]} 31. dxe4 {[%clk 0:00:17]}  fxe4 {[%clk 0:00:56]} 32. fxe4 {[%clk 0:00:16]}  Nh5 {[%clk 0:00:55]} 33. Bd6 {[%clk 0:00:13]}  Rf6 {[%clk 0:00:50]} 34. e5 {[%clk 0:00:10]}  Rg6 {[%clk 0:00:50]} 35. Qc2 {[%clk 0:00:05]}  Re6 {[%clk 0:00:48]} 36. Re3 {[%clk 0:00:05]}  Kg8 {[%clk 0:00:46]} 37. Qf2 {[%clk 0:00:03]}  Nd8 {[%clk 0:00:30]} 38. Rf1 {[%clk 0:00:04]}  Nf7 {[%clk 0:00:28]} 39. Bxc5 {[%clk 0:00:04]}  Ng5 {[%clk 0:00:22]} 40. Bd4 {[%clk 0:00:04]}  Kh7 {[%clk 0:00:21]} 41. Nd6 {[%clk 0:00:04]}  Qc6 {[%clk 0:00:21]} 42. Nf5 {[%clk 0:00:04]}  Re8 {[%clk 0:00:12]} 43. Qc2 {[%clk 0:00:04]}  Kg8 {[%clk 0:00:11]} 44. Nh4 {[%clk 0:00:05]}  Rge6 {[%clk 0:00:10]} 45. Qe2 {[%clk 0:00:05]}  g6 {[%clk 0:00:07]} 46. Nxg6 {[%clk 0:00:05]}  Rxg6 {[%clk 0:00:07]} 47. Qxh5 {[%clk 0:00:05]}  Ree6 {[%clk 0:00:06]} 48. Qe2 {[%clk 0:00:05]}  Re7 {[%clk 0:00:06]} 49. Qf2 {[%clk 0:00:05]}  Reg7 {[%clk 0:00:05]} 50. Qe2 {[%clk 0:00:05]}  Kh7 {[%clk 0:00:05]} 51. Qc2 {[%clk 0:00:05]}  Kg8 {[%clk 0:00:03]} 52. e6 {[%clk 0:00:05]}  Re7 {[%clk 0:00:03]} 53. Qxg6+ {[%clk 0:00:04]} 1-0


[Site "https://www.chess.com"]

[Event "Titled Tuesday Blitz February 14 Late 2023"]
[White "Lucassen, Mickey"]
[Black "Erdogdu, Mert"]
[WhiteFideId "12919110"]
[BlackFideId "6301495"]
[WhiteElo "2023"]
[BlackElo "2413"]
[Result "1-0"]
[Round "04"]
[TimeControl "180+2"]
[Date "2023.02.14"]
[WhiteClock "0:00:33"]
[BlackClock "0:00:02"]

1. e4 {[%clk 0:03:00]}  c5 {[%clk 0:03:00]} 2. Nf3 {[%clk 0:03:01]}  d6 {[%clk 0:03:00]} 3. d4 {[%clk 0:03:01]}  cxd4 {[%clk 0:03:01]} 4. Nxd4 {[%clk 0:03:02]}  Nf6 {[%clk 0:03:02]} 5. Nc3 {[%clk 0:03:02]}  a6 {[%clk 0:03:03]} 6. Be3 {[%clk 0:03:02]}  e6 {[%clk 0:03:03]} 7. g4 {[%clk 0:02:53]}  h6 {[%clk 0:03:02]} 8. Rg1 {[%clk 0:02:52]}  Nc6 {[%clk 0:02:53]} 9. h4 {[%clk 0:02:49]}  h5 {[%clk 0:02:53]} 10. g5 {[%clk 0:02:36]}  Ng4 {[%clk 0:02:53]} 11. Nxc6 {[%clk 0:02:37]}  bxc6 {[%clk 0:02:46]} 12. Bd2 {[%clk 0:02:17]}  Qb6 {[%clk 0:02:38]} 13. Qe2 {[%clk 0:02:15]}  Qxb2 {[%clk 0:02:30]} 14. Rb1 {[%clk 0:02:14]}  Qxc2 {[%clk 0:02:28]} 15. Rb6 {[%clk 0:02:06]}  Be7 {[%clk 0:01:36]} 16. Rxg4 {[%clk 0:01:50]}  hxg4 {[%clk 0:01:36]} 17. Qe3 {[%clk 0:01:51]}  Bd8 {[%clk 0:01:04]} 18. Rb3 {[%clk 0:01:13]}  Rxh4 {[%clk 0:00:42]} 19. Bd3 {[%clk 0:01:07]}  Rh1+ {[%clk 0:00:14]} 20. Ke2 {[%clk 0:01:07]}  g3 {[%clk 0:00:14]} 21. Qxg3 {[%clk 0:00:55]}  Qxb3 {[%clk 0:00:07]} 22. axb3 {[%clk 0:00:55]}  Rb8 {[%clk 0:00:07]} 23. g6 {[%clk 0:00:42]}  Bf6 {[%clk 0:00:06]} 24. gxf7+ {[%clk 0:00:41]}  Kxf7 {[%clk 0:00:07]} 25. Qxd6 {[%clk 0:00:39]}  Rb7 {[%clk 0:00:04]} 26. Qxc6 {[%clk 0:00:33]}  Rb8 {[%clk 0:00:02]} 27. Qc7+ {[%clk 0:00:33]} 1-0


[Site "https://www.chess.com"]

[Event "Titled Tuesday Blitz February 14 Late 2023"]
[White "Kleiman, Jake"]
[Black "Perske, Thore"]
[WhiteFideId "2020041"]
[BlackFideId "12902195"]
[WhiteElo "2399"]
[BlackElo "2448"]
[Result "1-0"]
[Round "04"]
[TimeControl "180+2"]
[Date "2023.02.14"]
[WhiteClock "0:00:25"]
[BlackClock "0:00:06"]

1. e4 {[%clk 0:03:00]}  e6 {[%clk 0:02:51]} 2. d3 {[%clk 0:02:58]}  d5 {[%clk 0:02:51]} 3. Qe2 {[%clk 0:02:59]}  Ne7 {[%clk 0:02:43]} 4. Nf3 {[%clk 0:02:59]}  c5 {[%clk 0:02:42]} 5. g3 {[%clk 0:03:00]}  Nbc6 {[%clk 0:02:43]} 6. Bg2 {[%clk 0:03:01]}  g6 {[%clk 0:02:43]} 7. O-O {[%clk 0:03:01]}  Bg7 {[%clk 0:02:44]} 8. c3 {[%clk 0:02:52]}  O-O {[%clk 0:02:43]} 9. Re1 {[%clk 0:02:51]}  b6 {[%clk 0:02:43]} 10. e5 {[%clk 0:02:50]}  Qc7 {[%clk 0:02:40]} 11. h4 {[%clk 0:02:49]}  h6 {[%clk 0:02:40]} 12. Bf4 {[%clk 0:02:49]}  a5 {[%clk 0:02:18]} 13. a4 {[%clk 0:02:47]}  Ba6 {[%clk 0:02:17]} 14. Na3 {[%clk 0:02:41]}  Na7 {[%clk 0:02:08]} 15. Rad1 {[%clk 0:02:39]}  b5 {[%clk 0:02:05]} 16. axb5 {[%clk 0:02:38]}  Nxb5 {[%clk 0:02:06]} 17. Nxb5 {[%clk 0:02:38]}  Bxb5 {[%clk 0:02:06]} 18. Qd2 {[%clk 0:02:31]}  Kh7 {[%clk 0:02:06]} 19. Nh2 {[%clk 0:02:21]}  a4 {[%clk 0:02:03]} 20. Ng4 {[%clk 0:02:21]}  Ng8 {[%clk 0:01:00]} 21. Nf6+ {[%clk 0:02:21]}  Bxf6 {[%clk 0:01:00]} 22. exf6 {[%clk 0:02:22]}  Qd8 {[%clk 0:01:00]} 23. Be5 {[%clk 0:01:56]}  Nxf6 {[%clk 0:00:59]} 24. c4 {[%clk 0:01:52]}  Bc6 {[%clk 0:00:57]} 25. Qf4 {[%clk 0:01:44]}  Nh5 {[%clk 0:00:49]} 26. Qc1 {[%clk 0:01:30]}  f6 {[%clk 0:00:26]} 27. Bc3 {[%clk 0:01:17]}  Qd7 {[%clk 0:00:26]} 28. d4 {[%clk 0:01:16]}  cxd4 {[%clk 0:00:24]} 29. Bxd4 {[%clk 0:01:10]}  Rac8 {[%clk 0:00:22]} 30. Bc5 {[%clk 0:00:56]}  Rfe8 {[%clk 0:00:22]} 31. Qe3 {[%clk 0:00:53]}  Qf7 {[%clk 0:00:20]} 32. cxd5 {[%clk 0:00:49]}  Bxd5 {[%clk 0:00:20]} 33. Bxd5 {[%clk 0:00:49]}  exd5 {[%clk 0:00:21]} 34. Qd4 {[%clk 0:00:50]}  Ng7 {[%clk 0:00:20]} 35. Rxe8 {[%clk 0:00:48]}  Rxe8 {[%clk 0:00:21]} 36. Qxd5 {[%clk 0:00:47]}  Qxd5 {[%clk 0:00:20]} 37. Rxd5 {[%clk 0:00:48]}  Rb8 {[%clk 0:00:20]} 38. Rd7 {[%clk 0:00:46]}  Kg8 {[%clk 0:00:16]} 39. Bd4 {[%clk 0:00:45]}  Ne8 {[%clk 0:00:14]} 40. Ra7 {[%clk 0:00:44]}  Rb4 {[%clk 0:00:14]} 41. Bc3 {[%clk 0:00:44]}  Rc4 {[%clk 0:00:14]} 42. Re7 {[%clk 0:00:43]}  Rc8 {[%clk 0:00:14]} 43. Kg2 {[%clk 0:00:41]}  Kf8 {[%clk 0:00:14]} 44. Ra7 {[%clk 0:00:41]}  Rc4 {[%clk 0:00:13]} 45. Kf3 {[%clk 0:00:41]}  h5 {[%clk 0:00:13]} 46. Ke3 {[%clk 0:00:41]}  f5 {[%clk 0:00:13]} 47. Kd3 {[%clk 0:00:42]}  Re4 {[%clk 0:00:13]} 48. f3 {[%clk 0:00:41]}  Re6 {[%clk 0:00:11]} 49. Rxa4 {[%clk 0:00:41]}  Ke7 {[%clk 0:00:12]} 50. Ra7+ {[%clk 0:00:41]}  Kd6 {[%clk 0:00:12]} 51. b4 {[%clk 0:00:39]}  Nc7 {[%clk 0:00:10]} 52. Bd4 {[%clk 0:00:35]}  Kc6 {[%clk 0:00:08]} 53. Ra5 {[%clk 0:00:33]}  Re1 {[%clk 0:00:08]} 54. Rc5+ {[%clk 0:00:31]}  Kd6 {[%clk 0:00:08]} 55. Be3 {[%clk 0:00:29]}  Rb1 {[%clk 0:00:07]} 56. Bf4+ {[%clk 0:00:28]}  Ke6 {[%clk 0:00:06]} 57. Rxc7 {[%clk 0:00:28]}  Rxb4 {[%clk 0:00:07]} 58. Rc6+ {[%clk 0:00:28]}  Kf7 {[%clk 0:00:07]} 59. Be5 {[%clk 0:00:27]}  Rb3+ {[%clk 0:00:07]} 60. Ke2 {[%clk 0:00:25]}  Rb5 {[%clk 0:00:06]} 61. f4 {[%clk 0:00:25]}  Rd5 {[%clk 0:00:05]} 62. Rf6+ {[%clk 0:00:25]}  Kg7 {[%clk 0:00:06]} 63. Rd6+ {[%clk 0:00:25]} 1-0


[Site "https://www.chess.com"]

[Event "Titled Tuesday Blitz February 14 Late 2023"]
[White "Darini, Pouria"]
[Black "Brilej, Jaka"]
[WhiteFideId "12502200"]
[BlackFideId "14618818"]
[WhiteElo "2401"]
[BlackElo "2321"]
[Result "1-0"]
[Round "04"]
[TimeControl "180+2"]
[Date "2023.02.14"]
[WhiteClock "0:00:07"]
[BlackClock "0:00:09"]

1. e4 {[%clk 0:02:59]}  d6 {[%clk 0:03:00]} 2. d4 {[%clk 0:02:59]}  Nf6 {[%clk 0:03:00]} 3. Nc3 {[%clk 0:03:00]}  g6 {[%clk 0:03:00]} 4. Be3 {[%clk 0:02:59]}  c6 {[%clk 0:02:59]} 5. Qd2 {[%clk 0:02:57]}  b5 {[%clk 0:02:58]} 6. f3 {[%clk 0:02:58]}  Nbd7 {[%clk 0:02:57]} 7. O-O-O {[%clk 0:02:55]}  Nb6 {[%clk 0:02:56]} 8. Qe1 {[%clk 0:02:39]}  b4 {[%clk 0:02:53]} 9. Nce2 {[%clk 0:02:40]}  a5 {[%clk 0:02:53]} 10. Kb1 {[%clk 0:02:39]}  Qc7 {[%clk 0:02:43]} 11. g4 {[%clk 0:02:38]}  Bg7 {[%clk 0:02:40]} 12. Ng3 {[%clk 0:02:39]}  c5 {[%clk 0:02:39]} 13. Bb5+ {[%clk 0:02:36]}  Bd7 {[%clk 0:02:38]} 14. Bxd7+ {[%clk 0:02:36]}  Nbxd7 {[%clk 0:02:39]} 15. h4 {[%clk 0:02:28]}  Nb6 {[%clk 0:02:35]} 16. h5 {[%clk 0:02:27]}  Nfd7 {[%clk 0:02:31]} 17. h6 {[%clk 0:02:25]}  Bxd4 {[%clk 0:02:30]} 18. Bxd4 {[%clk 0:02:26]}  cxd4 {[%clk 0:02:31]} 19. Rxd4 {[%clk 0:02:27]}  O-O {[%clk 0:02:22]} 20. Nh3 {[%clk 0:02:13]}  Rfc8 {[%clk 0:02:19]} 21. Rh2 {[%clk 0:02:11]}  Ne5 {[%clk 0:02:18]} 22. Qd1 {[%clk 0:02:03]}  Nbc4 {[%clk 0:02:12]} 23. Nf4 {[%clk 0:01:47]}  Nxb2 {[%clk 0:01:41]} 24. Kxb2 {[%clk 0:01:43]}  Qc3+ {[%clk 0:01:40]} 25. Kb1 {[%clk 0:01:43]}  Qxf3 {[%clk 0:01:29]} 26. Nge2 {[%clk 0:00:49]}  Nc4 {[%clk 0:01:21]} 27. Rh3 {[%clk 0:00:26]}  Qxg4 {[%clk 0:01:07]} 28. Rg3 {[%clk 0:00:18]}  Na3+ {[%clk 0:01:02]} 29. Rxa3 {[%clk 0:00:17]}  bxa3 {[%clk 0:01:03]} 30. Nd5 {[%clk 0:00:16]}  Qd7 {[%clk 0:00:57]} 31. Ka1 {[%clk 0:00:14]}  Rab8 {[%clk 0:00:56]} 32. e5 {[%clk 0:00:13]}  Qb7 {[%clk 0:00:47]} 33. Qc1 {[%clk 0:00:14]}  dxe5 {[%clk 0:00:47]} 34. Rd3 {[%clk 0:00:13]}  Qb2+ {[%clk 0:00:21]} 35. Qxb2 {[%clk 0:00:12]}  axb2+ {[%clk 0:00:21]} 36. Kb1 {[%clk 0:00:13]}  Rb7 {[%clk 0:00:22]} 37. Nec3 {[%clk 0:00:09]}  f5 {[%clk 0:00:20]} 38. a4 {[%clk 0:00:03]}  e4 {[%clk 0:00:19]} 39. Rd4 {[%clk 0:00:03]}  Kf7 {[%clk 0:00:18]} 40. Nb5 {[%clk 0:00:04]}  Rd8 {[%clk 0:00:16]} 41. c4 {[%clk 0:00:04]}  e6 {[%clk 0:00:15]} 42. Ndc3 {[%clk 0:00:01]}  Rxd4 {[%clk 0:00:13]} 43. Nxd4 {[%clk 0:00:02]}  Rb4 {[%clk 0:00:12]} 44. Nc6 {[%clk 0:00:02]}  Rb3 {[%clk 0:00:09]} 45. Nb5 {[%clk 0:00:03]}  e3 {[%clk 0:00:09]} 46. Nbd4 {[%clk 0:00:03]}  Rd3 {[%clk 0:00:09]} 47. Kxb2 {[%clk 0:00:04]}  e2 {[%clk 0:00:08]} 48. Ne5+ {[%clk 0:00:04]}  Kf6 {[%clk 0:00:06]} 49. Nxd3 {[%clk 0:00:05]}  e5 {[%clk 0:00:07]} 50. Nxe2 {[%clk 0:00:06]}  f4 {[%clk 0:00:07]} 51. Ndxf4 {[%clk 0:00:06]}  exf4 {[%clk 0:00:07]} 52. Nxf4 {[%clk 0:00:07]}  g5 {[%clk 0:00:08]} 53. Nd3 {[%clk 0:00:07]}  Ke6 {[%clk 0:00:08]} 54. Kc3 {[%clk 0:00:07]}  Kd6 {[%clk 0:00:09]} 55. Kd4 {[%clk 0:00:07]} 1-0


[Site "https://www.chess.com"]